bitfinex-derivatives/quotes_BTCF0:USTF0_20241022
["timestamp","ask_amount","ask_price","bid_price","bid_amount"]
[1729630105211,0.20316471,67594.0,67593.0,0.074005]
[1729630105705,0.20316471,67594.0,67593.0,0.14790219]
[1729630107408,0.20316471,67594.0,67593.0,0.074005]
[1729630109411,0.20316471,67594.0,67593.0,0.14790219]
[1729630109607,0.20316471,67594.0,67593.0,0.074005]
[1729630109811,0.074007,67591.0,67590.0,0.14790419]
[1729630110009,0.434807,67591.0,67590.0,0.074007]
[1729630111919,0.074008,67590.0,67589.0,0.07389719]
[1729630112119,0.074008,67590.0,67589.0,0.23567679]
[1729630112313,0.074008,67590.0,67589.0,0.14790619]
[1729630112509,0.074008,67590.0,67589.0,0.074009]
[1729630113323,0.10752,67592.0,67591.0,0.074007]
[1729630116020,0.074005,67593.0,67589.0,0.15433994]
[1729630116220,0.074005,67593.0,67592.0,0.074006]
[1729630116819,0.12916071,67594.0,67592.0,0.074006]
[1729630116820,0.02164071,67594.0,67593.0,0.074005]
[1729630117121,0.46832,67598.0,67597.0,0.074001]
[1729630118217,0.3608,67598.0,67597.0,0.074001]
[1729630118815,0.38232946,67598.0,67597.0,0.074001]
[1729630120623,0.38232946,67598.0,67597.0,0.20062016]
[1729630121519,0.38232946,67598.0,67597.0,0.20060867]
[1729630123528,0.38232946,67598.0,67597.0,0.2891918]
[1729630127320,0.38232946,67598.0,67597.0,0.20060867]
[1729630127515,0.38232946,67598.0,67597.0,0.113401]
[1729630131330,0.02152946,67598.0,67597.0,0.113401]
[1729630131632,0.073996,67601.0,67600.0,0.073997]
[1729630131822,0.073996,67601.0,67600.0,0.183997]
[1729630132529,0.09544672,67601.0,67600.0,0.183997]
[1729630133030,0.02145072,67601.0,67600.0,0.183997]
[1729630133220,0.073993,67605.0,67604.0,0.073993]
[1729630133421,0.073993,67605.0,67604.0,0.183993]
[1729630135523,0.073993,67605.0,67604.0,0.073993]
[1729630135723,0.073993,67605.0,67604.0,0.16154523]
[1729630137922,0.073993,67605.0,67604.0,0.08755223]
[1729630139636,0.073993,67605.0,67604.0,0.16137498]
[1729630139927,0.073993,67605.0,67604.0,0.1613757]
[1729630140428,0.073993,67605.0,67604.0,0.08767183]
[1729630140622,0.073993,67605.0,67604.0,0.16149927]
[1729630141030,0.073993,67605.0,67604.0,0.08767183]
[1729630142631,0.40800355,67605.0,67595.0,0.11]
[1729630142827,0.183996,67602.0,67601.0,0.073996]
[1729630146533,0.23117579,67602.0,67601.0,0.073996]
[1729630146730,0.23120111,67602.0,67601.0,0.073996]
[1729630147234,0.71088531,67602.0,67587.0,0.04430195]
[1729630147427,0.18401,67588.0,67587.0,0.074012]
[1729630148428,0.11,67588.0,67587.0,0.074012]
[1729630149933,0.074007,67591.0,67586.0,0.11]
[1729630150126,0.074007,67591.0,67589.0,0.11]
[1729630150635,0.074007,67591.0,67590.0,0.19349603]
[1729630151330,0.074007,67591.0,67590.0,0.26750403]
[1729630152440,0.11,67593.0,67592.0,0.074006]
[1729630152733,0.11,67593.0,67592.0,0.16228128]
[1729630152938,0.13173744,67593.0,67592.0,0.16228128]
[1729630153241,0.13173744,67593.0,67592.0,0.26753095]
[1729630154233,0.13173744,67593.0,67592.0,0.16228128]
[1729630154736,0.02173744,67593.0,67592.0,0.16228128]
[1729630154936,0.434804,67594.0,67593.0,0.074005]
[1729630155140,0.434804,67594.0,67593.0,0.16228028]
[1729630156037,0.45583389,67594.0,67593.0,0.16228028]
[1729630157731,0.45583389,67594.0,67593.0,0.074005]
[1729630161632,0.49182989,67594.0,67584.0,0.3608]
[1729630161833,0.49182989,67594.0,67585.0,0.074013]
[1729630161834,0.074014,67586.0,67585.0,0.074013]
[1729630163539,0.184014,67586.0,67585.0,0.074013]
[1729630164438,0.074014,67586.0,67585.0,0.074013]
[1729630165841,0.074014,67586.0,67585.0,0.16256659]
[1729630167644,0.434814,67586.0,67585.0,0.16256659]
[1729630169641,0.45596728,67586.0,67585.0,0.16256659]
[1729630170148,0.56596728,67586.0,67585.0,0.07386352]
[1729630170345,0.074014,67585.0,67584.0,0.07386352]
[1729630170563,0.291254,67585.0,67584.0,0.08880752]
[1729630170852,0.291254,67585.0,67584.0,0.16282252]
[1729630171047,0.291254,67585.0,67584.0,0.23668111]
[1729630171249,0.291254,67585.0,67584.0,0.16277867]
[1729630171451,0.291254,67585.0,67584.0,0.23663355]
[1729630171646,0.291254,67585.0,67584.0,0.16277867]
[1729630172047,0.291254,67585.0,67584.0,0.23663348]
[1729630172354,0.291254,67585.0,67584.0,0.16277867]
[1729630173655,0.291254,67585.0,67584.0,0.08876367]
[1729630174149,0.184014,67585.0,67584.0,0.08876367]
[1729630174342,0.291254,67585.0,67584.0,0.08876367]
[1729630176242,0.181254,67585.0,67584.0,0.08876367]
[1729630176755,0.181254,67585.0,67584.0,0.08857146]
[1729630178146,0.181254,67585.0,67584.0,0.16258646]
[1729630180847,0.181254,67585.0,67584.0,0.074015]
[1729630181551,0.181254,67585.0,67584.0,0.11835608]
[1729630184054,0.181254,67585.0,67584.0,0.074015]
[1729630185862,0.181254,67585.0,67584.0,0.11837353]
[1729630186057,0.181254,67585.0,67584.0,0.074015]
[1729630186561,0.181254,67585.0,67584.0,0.11838044]
[1729630187159,0.181254,67585.0,67584.0,0.074015]
[1729630188066,0.181254,67585.0,67584.0,0.1479168]
[1729630188251,0.291254,67585.0,67584.0,0.23663783]
[1729630189153,0.291254,67585.0,67584.0,0.16267293]
[1729630190865,0.291254,67585.0,67584.0,0.16279345]
[1729630195961,0.181254,67585.0,67584.0,0.16279345]
[1729630196266,0.291254,67585.0,67584.0,0.26859617]
[1729630197867,0.291254,67585.0,67584.0,0.16279345]
[1729630198166,0.291254,67585.0,67584.0,0.26866915]
[1729630199059,0.291254,67585.0,67584.0,0.2687061]
[1729630200161,0.0435,67595.0,67584.0,0.2687061]
[1729630200162,0.0022197,67599.0,67598.0,0.073999]
[1729630200464,0.0762177,67599.0,67598.0,0.26734541]
[1729630200663,0.183998,67599.0,67598.0,0.19334641]
[1729630201165,0.20563017,67599.0,67598.0,0.16224774]
[1729630201958,0.20563017,67599.0,67598.0,0.26806112]
[1729630202264,0.20563017,67599.0,67598.0,0.16224774]
[1729630203067,0.20563017,67599.0,67598.0,0.073999]
[1729630204765,0.13163217,67599.0,67598.0,0.073999]
[1729630204967,0.13163217,67599.0,67598.0,0.183999]
[1729630204968,0.02163217,67599.0,67598.0,0.183999]
[1729630205273,0.3608,67604.0,67603.0,0.073994]
[1729630205473,0.3608,67604.0,67603.0,0.183994]
[1729630205678,0.38245711,67604.0,67603.0,0.183994]
[1729630220184,0.45645011,67604.0,67603.0,0.183994]
[1729630222282,0.60245711,67604.0,67591.0,0.3608]
[1729630222588,0.60245711,67604.0,67591.0,0.074007]
[1729630222589,0.074007,67592.0,67591.0,0.074007]
[1729630222893,0.074007,67592.0,67591.0,0.184007]
[1729630226087,0.09565512,67592.0,67591.0,0.27405152]
[1729630227276,0.09565512,67592.0,67591.0,0.27408425]
[1729630229204,0.09565512,67592.0,67591.0,0.36280925]
[1729630229598,0.09565512,67592.0,67591.0,0.27408425]
[1729630231600,0.09565512,67592.0,67591.0,0.16408425]
[1729630231798,0.20565512,67592.0,67591.0,0.16408425]
[1729630233105,0.20565512,67592.0,67591.0,0.074007]
[1729630233599,0.13164812,67592.0,67591.0,0.074007]
[1729630233802,0.02164812,67592.0,67591.0,0.074007]
[1729630234005,0.184003,67595.0,67590.0,0.16914296]
[1729630234206,0.184003,67595.0,67594.0,0.074004]
[1729630237508,0.184003,67595.0,67594.0,0.11835463]
[1729630237910,0.184003,67595.0,67594.0,0.074004]
[1729630241119,0.184003,67595.0,67594.0,0.16390692]
[1729630241616,0.184003,67595.0,67594.0,0.16391109]
[1729630243407,0.184003,67595.0,67594.0,0.25262621]
[1729630243618,0.184003,67595.0,67594.0,0.16391109]
[1729630246419,0.184003,67595.0,67594.0,0.1639037]
[1729630247305,0.074003,67595.0,67594.0,0.1639037]
[1729630247907,0.074003,67595.0,67594.0,0.27104515]
[1729630248212,0.074003,67595.0,67594.0,0.074004]
[1729630249021,0.074003,67595.0,67594.0,0.13316702]
[1729630251216,0.074003,67595.0,67594.0,0.074004]
[1729630253916,0.02214961,67598.0,67597.0,0.074001]
[1729630254221,0.02090961,67598.0,67597.0,0.074001]
[1729630254411,0.073997,67601.0,67600.0,0.073997]
[1729630254813,0.0957694,67601.0,67600.0,0.073997]
[1729630256011,0.0957694,67601.0,67600.0,0.16378765]
[1729630256213,0.0957694,67601.0,67600.0,0.27072986]
[1729630256526,0.434794,67604.0,67600.0,0.30673286]
[1729630256826,0.434794,67604.0,67603.0,0.073994]
[1729630257123,0.434794,67604.0,67603.0,0.27072686]
[1729630257822,0.434794,67604.0,67603.0,0.16378465]
[1729630258010,0.434794,67604.0,67603.0,0.27068981]
[1729630258518,0.45601954,67604.0,67603.0,0.16378465]
[1729630258921,0.56601954,67604.0,67603.0,0.08979065]
[1729630260627,0.56601854,67604.0,67603.0,0.08966208]
[1729630261328,0.56601854,67604.0,67603.0,0.16365608]
[1729630264220,0.56601854,67604.0,67603.0,0.08966208]
[1729630268437,0.56601854,67604.0,67603.0,0.09196364]
[1729630268438,0.49202554,67604.0,67603.0,0.09196364]
[1729630268630,0.56601854,67604.0,67603.0,0.09196364]
[1729630268835,0.45601854,67604.0,67603.0,0.16595764]
[1729630270831,0.45601854,67604.0,67603.0,0.27595764]
[1729630271228,0.45601854,67604.0,67603.0,0.183994]
[1729630273231,0.073999,67600.0,67599.0,0.073997]
[1729630274036,0.11,67600.0,67590.0,0.04438195]
[1729630274241,0.11,67588.0,67587.0,0.04438195]
[1729630274433,0.18401,67588.0,67586.0,0.074012]
[1729630274636,0.074012,67587.0,67586.0,0.184012]
[1729630275627,0.074008,67591.0,67590.0,0.074007]
[1729630275831,0.074008,67591.0,67590.0,0.184007]
[1729630278142,0.38212705,67592.0,67590.0,0.49010289]
[1729630278329,0.38212705,67592.0,67586.0,0.11843977]
[1729630278330,0.45613305,67592.0,67591.0,0.20246109]
[1729630278538,0.56613305,67592.0,67591.0,0.08873856]
[1729630278735,0.56613305,67592.0,67590.0,0.08873856]
[1729630278736,0.074007,67591.0,67590.0,0.08873856]
[1729630279043,0.074008,67590.0,67589.0,0.08873856]
[1729630279245,0.074009,67589.0,67588.0,0.08873856]
[1729630279435,0.07401,67588.0,67587.0,0.08873856]
[1729630279744,0.074012,67587.0,67586.0,0.08873856]
[1729630279937,0.184012,67587.0,67586.0,0.08873856]
[1729630280138,0.074012,67587.0,67585.0,0.184013]
[1729630280337,0.3608,67586.0,67585.0,0.184013]
[1729630280539,0.434813,67586.0,67585.0,0.184013]
[1729630282942,0.434813,67586.0,67585.0,0.27267035]
[1729630283346,0.434813,67586.0,67585.0,0.184013]
[1729630284047,0.434813,67586.0,67585.0,0.27267035]
[1729630285347,0.434813,67586.0,67585.0,0.184013]
[1729630285754,0.434813,67586.0,67585.0,0.27267035]
[1729630285950,0.434813,67586.0,67585.0,0.184013]
[1729630294454,0.434813,67586.0,67585.0,0.22831816]
[1729630294654,0.434813,67586.0,67585.0,0.184013]
[1729630295254,0.434813,67586.0,67585.0,0.22831816]
[1729630297261,0.544813,67586.0,67585.0,0.074013]
[1729630298366,0.544813,67586.0,67585.0,0.11831816]
[1729630300254,0.544813,67586.0,67585.0,0.074013]
[1729630300858,0.544813,67586.0,67585.0,0.11836261]
[1729630301260,0.544813,67586.0,67585.0,0.16569593]
[1729630301455,0.544813,67586.0,67585.0,0.16572071]
[1729630302163,0.544813,67586.0,67585.0,0.25444394]
[1729630302368,0.544813,67586.0,67585.0,0.16572071]
[1729630304261,0.544813,67586.0,67585.0,0.2751854]
[1729630306673,0.544813,67586.0,67585.0,0.16572071]
[1729630307377,0.544813,67586.0,67585.0,0.27523001]
[1729630308373,0.544813,67586.0,67585.0,0.074013]
[1729630309274,0.4708,67586.0,67580.0,0.00221925]
[1729630309572,0.074018,67581.0,67580.0,0.07623825]
[1729630315365,0.074018,67581.0,67580.0,0.27767115]
[1729630318165,0.09545614,67581.0,67580.0,0.27767115]
[1729630319473,0.02143814,67581.0,67580.0,0.38767115]
[1729630319671,0.10708,67583.0,67580.0,0.31365215]
[1729630319979,0.10708,67583.0,67582.0,0.074017]
[1729630320171,0.10708,67583.0,67582.0,0.2754499]
[1729630320964,0.181096,67583.0,67582.0,0.2754499]
[1729630321573,0.074016,67583.0,67582.0,0.2754499]
[1729630323377,0.074016,67583.0,67582.0,0.16591318]
[1729630323773,0.184016,67583.0,67582.0,0.09185828]
[1729630324179,0.184016,67583.0,67582.0,0.16590025]
[1729630324381,0.184016,67583.0,67582.0,0.09185828]
[1729630324588,0.184016,67583.0,67582.0,0.0740427]
[1729630324986,0.11,67583.0,67581.0,0.0740427]
[1729630325173,0.074017,67582.0,67581.0,0.0740427]
[1729630325484,0.074017,67582.0,67581.0,0.16645141]
[1729630325683,0.181097,67582.0,67581.0,0.16645141]
[1729630326384,0.181097,67582.0,67581.0,0.0740427]
[1729630327290,0.85462739,67586.0,67583.0,0.074016]
[1729630327291,0.74462739,67586.0,67583.0,0.074016]
[1729630327487,0.074016,67584.0,67583.0,0.074016]
[1729630327680,0.074016,67584.0,67583.0,0.16624233]
[1729630331191,0.074016,67584.0,67583.0,0.2761925]
[1729630332180,0.181096,67584.0,67583.0,0.2761925]
[1729630333284,0.181096,67584.0,67583.0,0.2761688]
[1729630334295,0.181096,67584.0,67583.0,0.1662406]
[1729630335295,0.181096,67584.0,67583.0,0.27623509]
[1729630337496,0.181096,67584.0,67583.0,0.20221909]
[1729630337694,0.181096,67584.0,67583.0,0.27623509]
[1729630337890,0.181096,67584.0,67583.0,0.20221909]
[1729630338491,0.181096,67584.0,67583.0,0.0922246]
[1729630340298,0.181096,67584.0,67583.0,0.20231571]
[1729630341093,0.074016,67584.0,67583.0,0.20231571]
[1729630341293,0.181096,67584.0,67583.0,0.20231571]
[1729630341602,0.181096,67584.0,67583.0,0.27633171]
[1729630342801,0.181096,67584.0,67583.0,0.27639485]
[1729630343296,0.181096,67584.0,67583.0,0.20237885]
[1729630343499,0.181096,67584.0,67583.0,0.18116586]
[1729630343797,0.074016,67584.0,67583.0,0.18116586]
[1729630343988,0.10708,67584.0,67583.0,0.36518186]
[1729630344195,0.74462739,67586.0,67585.0,0.074014]
[1729630344394,0.74350738,67586.0,67585.0,0.16634173]
[1729630345496,0.74350738,67586.0,67585.0,0.074014]
[1729630356707,0.74350738,67586.0,67585.0,0.27777908]
[1729630357711,0.74350738,67586.0,67585.0,0.074014]
[1729630361006,0.81752038,67586.0,67585.0,0.074014]
[1729630361699,0.81752038,67586.0,67585.0,0.24103441]
[1729630362612,0.09592038,67586.0,67585.0,0.24103441]
[1729630362806,0.45672038,67586.0,67585.0,0.24103441]
[1729630363714,0.45672038,67586.0,67585.0,0.14803163]
[1729630367110,0.45672038,67586.0,67585.0,0.24103596]
[1729630368314,0.45672038,67586.0,67585.0,0.24104272]
[1729630368511,0.45672038,67586.0,67585.0,0.16702509]
[1729630368707,0.45672038,67586.0,67585.0,0.27788856]
[1729630371419,0.09592038,67586.0,67585.0,0.27788856]
[1729630375815,0.02190738,67586.0,67585.0,0.074014]
[1729630376020,0.47192001,67588.0,67587.0,0.074012]
[1729630376215,0.4708,67588.0,67587.0,0.074012]
[1729630376922,0.4708,67588.0,67587.0,0.11844751]
[1729630377126,0.4708,67588.0,67587.0,0.074012]
[1729630378132,0.11,67588.0,67587.0,0.11844751]
[1729630378315,0.4708,67588.0,67587.0,0.11844751]
[1729630379525,0.4708,67588.0,67587.0,0.074012]
[1729630379710,0.4708,67588.0,67587.0,0.11844751]
[1729630380023,0.49210335,67588.0,67587.0,0.074012]
[1729630380724,0.49210335,67588.0,67587.0,0.11844595]
[1729630382720,0.49210335,67588.0,67587.0,0.16705015]
[1729630384726,0.38210335,67588.0,67587.0,0.27789955]
[1729630386019,0.38210335,67588.0,67587.0,0.3811525]
[1729630386231,0.38210335,67588.0,67587.0,0.50963646]
[1729630386529,0.38210335,67588.0,67587.0,0.3811525]
[1729630386930,0.38210335,67588.0,67587.0,0.50960458]
[1729630387133,0.3376602,67588.0,67587.0,0.40596978]
[1729630388217,0.02130335,67588.0,67587.0,0.40596978]
[1729630388423,0.3608,67595.0,67587.0,0.40596978]
[1729630388729,0.3608,67595.0,67594.0,0.184004]
[1729630388932,0.3608,67595.0,67594.0,0.38624964]
[1729630390224,0.02154201,67595.0,67594.0,0.38624964]
[1729630390426,0.00221994,67598.0,67597.0,0.074001]
[1729630390720,0.00221994,67598.0,67597.0,0.27593302]
[1729630391022,0.00221994,67598.0,67597.0,0.184001]
[1729630391529,0.00221994,67598.0,67597.0,0.074001]
[1729630391829,0.02372988,67598.0,67597.0,0.184001]
[1729630392022,0.00221994,67598.0,67597.0,0.184001]
[1729630392222,0.11221994,67598.0,67597.0,0.074001]
[1729630393126,0.00221994,67598.0,67597.0,0.184001]
[1729630396530,0.00221994,67598.0,67597.0,0.074001]
[1729630397925,0.00221994,67598.0,67597.0,0.14786853]
[1729630398521,0.00221994,67598.0,67597.0,0.16600881]
[1729630398723,0.00221994,67598.0,67597.0,0.23976971]
[1729630398926,0.00221994,67598.0,67597.0,0.2397686]
[1729630399130,0.00221994,67598.0,67593.0,0.19864104]
[1729630399131,0.074001,67597.0,67593.0,0.074005]
[1729630399337,0.074007,67591.0,67590.0,0.074008]
[1729630399528,0.184007,67591.0,67590.0,0.074008]
[1729630399728,1.684007,67591.0,67590.0,0.074008]
[1729630400125,0.184007,67591.0,67590.0,0.074008]
[1729630403541,0.20502333,67591.0,67590.0,0.074008]
[1729630405831,0.20502333,67591.0,67590.0,0.16633239]
[1729630411547,0.20502333,67591.0,67590.0,0.27643027]
[1729630412050,0.20502333,67591.0,67590.0,0.16633239]
[1729630412545,0.20502333,67591.0,67590.0,0.16588696]
[1729630412743,0.13101633,67591.0,67590.0,0.16588696]
[1729630412948,0.13101633,67591.0,67590.0,0.16587696]
[1729630413647,0.13101633,67591.0,67590.0,0.074008]
[1729630415142,0.13101633,67591.0,67587.0,0.05907365]
[1729630415339,0.29401,67588.0,67587.0,0.13308465]
[1729630415543,0.18401,67588.0,67587.0,0.13308465]
[1729630419355,0.07401,67588.0,67587.0,0.13308465]
[1729630419557,0.18401,67588.0,67587.0,0.13308465]
[1729630420149,0.18401,67588.0,67587.0,0.074011]
[1729630421055,0.29093,67588.0,67587.0,0.25464596]
[1729630423654,0.29093,67588.0,67587.0,0.16603548]
[1729630423856,0.29093,67588.0,67587.0,0.25464862]
[1729630424253,0.29093,67588.0,67587.0,0.16603548]
[1729630426255,0.18093,67588.0,67587.0,0.16603548]
[1729630426463,0.29093,67588.0,67587.0,0.16603548]
[1729630427362,0.29093,67588.0,67587.0,0.27577582]
[1729630427857,0.29093,67588.0,67587.0,0.16603548]
[1729630428250,0.29093,67588.0,67587.0,0.074011]
[1729630433962,0.3608,67591.0,67587.0,0.074011]
[1729630434167,0.3608,67591.0,67590.0,0.074008]
[1729630434862,0.20562068,67593.0,67592.0,0.074006]
[1729630435063,0.20562068,67593.0,67592.0,0.11833678]
[1729630435960,0.20562068,67593.0,67592.0,0.074006]
[1729630436160,0.20562068,67593.0,67592.0,0.16590942]
[1729630438268,0.31250068,67593.0,67592.0,0.16590942]
[1729630438468,0.31250068,67593.0,67592.0,0.16596559]
[1729630440160,0.31250068,67593.0,67592.0,0.09195959]
[1729630440366,0.31250068,67593.0,67592.0,0.1806393]
[1729630440761,0.31250068,67593.0,67592.0,0.09195959]
[1729630445779,0.20250068,67593.0,67592.0,0.09195959]
[1729630446073,0.31250068,67593.0,67592.0,0.09195959]
[1729630447671,0.31250068,67593.0,67592.0,0.18064857]
[1729630448877,0.31250068,67593.0,67592.0,0.09195959]
[1729630450377,0.67330068,67593.0,67592.0,0.09195959]
[1729630450979,0.67330068,67593.0,67592.0,0.18064857]
[1729630451171,0.074008,67591.0,67589.0,0.13313699]
[1729630451571,0.074008,67591.0,67589.0,0.074009]
[1729630452379,0.074008,67591.0,67589.0,0.13313699]
[1729630452675,0.074008,67591.0,67589.0,0.074009]
[1729630452982,0.074008,67591.0,67589.0,0.13313699]
[1729630454677,0.074008,67590.0,67589.0,0.13313699]
[1729630455481,0.074008,67590.0,67589.0,0.074009]
[1729630455980,0.180888,67590.0,67589.0,0.074009]
[1729630458079,0.180888,67590.0,67589.0,0.13313699]
[1729630458280,0.180888,67590.0,67589.0,0.27573497]
[1729630460781,0.180888,67590.0,67589.0,0.27578059]
[1729630466275,0.180888,67590.0,67589.0,0.074009]
[1729630469589,0.10684,67590.0,67584.0,0.14625656]
[1729630469774,0.10684,67590.0,67589.0,0.074009]
[1729630472088,0.074007,67592.0,67591.0,0.074007]
[1729630472285,0.180847,67592.0,67591.0,0.13318914]
[1729630473292,0.180847,67592.0,67591.0,0.16602049]
[1729630474586,0.074007,67592.0,67591.0,0.16602049]
[1729630474792,0.180847,67592.0,67591.0,0.27571489]
[1729630475293,0.180847,67592.0,67591.0,0.16602281]
[1729630475697,0.180847,67592.0,67591.0,0.27566222]
[1729630475991,0.10684,67592.0,67591.0,0.27562808]
[1729630481393,0.10684,67592.0,67591.0,0.13315166]
[1729630482099,0.10684,67592.0,67591.0,0.074007]
[1729630482299,0.10684,67592.0,67591.0,0.13315166]
[1729630482796,0.10684,67592.0,67591.0,0.074007]
[1729630483101,0.10684,67592.0,67591.0,0.13315166]
[1729630483600,0.10684,67592.0,67591.0,0.074007]
[1729630484100,0.10684,67592.0,67591.0,0.13315166]
[1729630484798,0.10684,67592.0,67591.0,0.074007]
[1729630485997,0.10684,67592.0,67591.0,0.13315293]
[1729630487098,0.10684,67592.0,67591.0,0.074007]
[1729630488200,0.10684,67592.0,67591.0,0.27527538]
[1729630490102,0.02161568,67593.0,67591.0,0.20126838]
[1729630490303,0.46764,67595.0,67592.0,0.20126662]
[1729630490501,0.46764,67595.0,67594.0,0.074004]
[1729630490713,0.46764,67595.0,67594.0,0.27527062]
[1729630491720,0.10684,67595.0,67594.0,0.27527062]
[1729630493217,0.31246854,67595.0,67594.0,0.27527062]
[1729630494516,0.31246854,67595.0,67594.0,0.27484091]
[1729630496329,0.31246854,67595.0,67594.0,0.25429561]
[1729630496626,0.31246854,67595.0,67594.0,0.16562828]
[1729630497432,0.31246854,67595.0,67594.0,0.25429561]
[1729630498830,0.31246854,67595.0,67594.0,0.16562828]
[1729630499123,0.31246854,67595.0,67594.0,0.25429929]
[1729630499330,0.31246854,67595.0,67594.0,0.25441871]
[1729630499721,0.31246854,67595.0,67594.0,0.1657477]
[1729630500323,0.31246854,67595.0,67594.0,0.25441332]
[1729630502533,0.31246854,67595.0,67594.0,0.25436729]
[1729630502735,0.20246854,67595.0,67594.0,0.16570167]
[1729630502926,0.12846554,67595.0,67594.0,0.16570167]
[1729630503129,0.12846554,67595.0,67594.0,0.27496431]
[1729630503330,0.12846554,67595.0,67594.0,0.074004]
[1729630504528,0.12846554,67595.0,67594.0,0.11833234]
[1729630507130,0.12846554,67595.0,67594.0,0.074004]
[1729630507529,0.02162554,67595.0,67594.0,0.074004]
[1729630507826,0.4708,67600.0,67597.0,0.074001]
[1729630507827,0.10684,67598.0,67597.0,0.074001]
[1729630508236,0.4708,67600.0,67597.0,0.11]
[1729630508532,0.4708,67600.0,67599.0,0.073998]
[1729630508834,0.57764,67600.0,67599.0,0.073998]
[1729630509828,0.59902349,67600.0,67599.0,0.073998]
[1729630511238,0.48902349,67600.0,67599.0,0.183998]
[1729630511437,0.48902349,67600.0,67599.0,0.27562004]
[1729630512034,0.48902349,67600.0,67599.0,0.27559797]
[1729630514239,0.38218349,67600.0,67599.0,0.16559797]
[1729630518338,0.38218349,67600.0,67599.0,0.073998]
[1729630522733,0.38218349,67600.0,67599.0,0.183998]
[1729630526450,0.38218349,67600.0,67599.0,0.38707269]
[1729630528341,0.02138349,67600.0,67599.0,0.38707269]
[1729630528540,0.3608,67605.0,67599.0,0.49707269]
[1729630528741,0.3608,67605.0,67604.0,0.183993]
[1729630528940,0.3608,67605.0,67604.0,0.27663818]
[1729630530749,0.38222409,67605.0,67604.0,0.27663818]
[1729630532247,0.3608,67605.0,67604.0,0.27663818]
[1729630533248,0.3608,67605.0,67604.0,0.16663818]
[1729630535563,0.3608,67605.0,67604.0,0.1666669]
[1729630536154,0.12827957,67607.0,67606.0,0.073991]
[1729630536357,0.48907957,67607.0,67606.0,0.073991]
[1729630536545,0.48907957,67607.0,67606.0,0.16666489]
[1729630536853,0.12827957,67607.0,67606.0,0.16666489]
[1729630537053,0.48907957,67607.0,67606.0,0.16666489]
[1729630537356,0.48907957,67607.0,67606.0,0.073991]
[1729630538152,0.48907957,67607.0,67606.0,0.16666556]
[1729630538341,0.56306957,67607.0,67606.0,0.16666556]
[1729630540149,0.20226957,67607.0,67606.0,0.16666556]
[1729630540349,0.56306957,67607.0,67606.0,0.16666556]
[1729630540550,0.60441455,67607.0,67606.0,0.073991]
[1729630543157,0.56306957,67607.0,67606.0,0.073991]
[1729630545851,0.46306957,67607.0,67606.0,0.073991]
[1729630548054,0.38907957,67607.0,67599.0,0.11]
[1729630548356,0.11,67603.0,67602.0,0.073994]
[1729630548556,0.11,67603.0,67602.0,0.16674408]
[1729630550765,0.11,67603.0,67602.0,0.25540616]
[1729630551465,0.11,67603.0,67602.0,0.16674408]
[1729630551972,0.11,67603.0,67602.0,0.16673256]
[1729630555563,0.11,67603.0,67602.0,0.073994]
[1729630561371,0.183994,67603.0,67602.0,0.073994]
[1729630563078,0.544794,67603.0,67602.0,0.073994]
[1729630563771,0.544794,67603.0,67602.0,0.27745854]
[1729630570177,0.183994,67603.0,67602.0,0.27745854]
[1729630570378,0.544794,67603.0,67602.0,0.27753136]
[1729630570686,0.544794,67603.0,67602.0,0.16681704]
[1729630570879,0.183994,67603.0,67602.0,0.073994]
[1729630571079,0.544794,67603.0,67602.0,0.073994]
[1729630571983,0.183994,67603.0,67602.0,0.073994]
[1729630572192,0.544794,67603.0,67602.0,0.073994]
[1729630574384,0.3608,67603.0,67602.0,0.073994]
[1729630574887,0.4708,67603.0,67602.0,0.073994]
[1729630575682,0.11,67603.0,67602.0,0.073994]
[1729630576077,0.4708,67603.0,67602.0,0.073994]
[1729630576887,0.57756,67603.0,67602.0,0.073994]
[1729630578590,0.49432,67603.0,67602.0,0.073994]
[1729630578793,0.21676,67603.0,67602.0,0.073994]
[1729630579089,0.21676,67603.0,67602.0,0.27746552]
[1729630582189,0.21676,67603.0,67602.0,0.16682022]
[1729630583692,0.21676,67603.0,67602.0,0.16682558]
[1729630585093,0.21676,67603.0,67602.0,0.27748258]
[1729630585986,0.21676,67603.0,67602.0,0.16682558]
[1729630588392,0.21676,67603.0,67602.0,0.16683817]
[1729630592695,0.11,67603.0,67602.0,0.16683817]
[1729630593296,0.11,67603.0,67602.0,0.16684454]
[1729630593889,0.11,67603.0,67602.0,0.073994]
[1729630594991,0.541514,67604.0,67603.0,0.073994]
[1729630595187,0.02168964,67607.0,67603.0,0.073994]
[1729630595398,0.00120001,67627.0,67608.0,0.073989]
[1729630595399,0.3608,67619.0,67608.0,0.073989]
[1729630595597,0.3608,67619.0,67617.0,0.183979]
[1729630595598,0.04176892,67618.0,67617.0,0.183979]
[1729630596300,0.3608,67619.0,67618.0,0.073978]
[1729630596499,0.40265392,67619.0,67618.0,0.104978]
[1729630597287,0.3608,67619.0,67618.0,0.104978]
[1729630601494,0.02704337,67620.0,67618.0,0.031]
[1729630601687,0.4708,67621.0,67618.0,0.031]
[1729630601894,0.11,67621.0,67620.0,0.073975]
[1729630602099,0.4708,67621.0,67620.0,0.073975]
[1729630603903,0.11,67621.0,67620.0,0.073975]
[1729630604509,0.13666577,67621.0,67620.0,0.073975]
[1729630615716,0.21063977,67621.0,67620.0,0.073975]
[1729630616303,0.21063977,67621.0,67620.0,0.11813116]
[1729630616903,0.073976,67619.0,67613.0,0.41967488]
[1729630617217,0.073986,67610.0,67609.0,0.04416723]
[1729630617418,0.4708,67610.0,67605.0,0.04416723]
[1729630617713,0.073992,67605.0,67604.0,0.04638574]
[1729630618012,0.073992,67605.0,67604.0,0.12040849]
[1729630618314,0.073992,67605.0,67604.0,0.07621151]
[1729630620015,0.073992,67605.0,67604.0,0.12041309]
[1729630620212,0.073992,67605.0,67604.0,0.07621151]
[1729630620408,0.073992,67605.0,67604.0,0.18621151]
[1729630620611,0.073992,67605.0,67604.0,0.07621151]
[1729630620811,0.073992,67605.0,67604.0,0.12041715]
[1729630621213,0.073992,67605.0,67604.0,0.07621151]
[1729630621513,0.073992,67605.0,67604.0,0.04642803]
[1729630621814,0.073996,67601.0,67597.0,0.05895874]
[1729630622009,0.0309,67604.0,67600.0,0.04422316]